fUSD/lending_fUSD_20260630
["ID","MTS","AMOUNT","RATE_DAILY","PERIOD"]
[426778045,1782820243000,-1673.46028244,0.000146,2]
[426778050,1782820243000,-2589.84576677,0.000146,2]
[426778052,1782820243000,-745.8496623,0.000146,2]
[426778053,1782820243000,-343.44054262,0.000146,2]
[426778049,1782820243000,-53.36580892,0.000146,2]
[426778051,1782820243000,-413.08974857,0.000146,2]
[426778059,1782820246000,-1827.59189205,0.000146,2]
[426778060,1782820246000,-14249.70057718,0.000146,2]
[426778058,1782820246000,-515.0,0.000146,2]
[426778063,1782820247000,-382.7,0.000146,2]
[426778061,1782820247000,-592.41195809,0.000146,2]
[426778062,1782820247000,-1564.15,0.000146,2]
[426778080,1782820627000,-307.09182605,0.00010829,2]
[426778083,1782820680000,200.0,0.000149,30]
[426778084,1782820680000,200.0,0.000149,30]
[426778085,1782820680000,200.0,0.000149,30]
[426778082,1782820680000,-151.0,0.00010829,2]
[426778086,1782820733000,-152.0,0.00010829,2]
[426778087,1782820787000,-151.0,0.00010829,2]
[426778088,1782820840000,-151.0,0.00010829,2]
[426778089,1782820893000,-151.0,0.00010829,2]
[426778090,1782820927000,-700.0,0.00037119,120]
[426778092,1782820927000,-50000.0,0.00037119,32]
[426778091,1782820927000,-50000.0,0.00037119,50]
[426778094,1782820927000,-50000.0,0.00037119,37]
[426778095,1782820927000,-50000.0,0.00037119,38]
[426778096,1782820927000,-50000.0,0.00037119,39]
[426778097,1782820927000,-50000.0,0.00037119,42]
[426778093,1782820927000,-50000.0,0.00037119,36]
[426778100,1782820927000,-50000.0,0.00037119,45]
[426778099,1782820927000,-50000.0,0.00037119,44]
[426778101,1782820927000,-50000.0,0.00037119,46]
[426778102,1782820927000,-646330.12552815,0.00037119,30]
[426778104,1782820927000,-405.89,0.00037119,120]
[426778103,1782820927000,-165.11292075,0.00037119,120]
[426778105,1782820927000,-500.0,0.00037119,120]
[426778098,1782820927000,-50000.0,0.00037119,43]
[426778117,1782820928000,-500.0,0.00037119,120]
[426778116,1782820928000,-500.0,0.00037119,120]
[426778113,1782820928000,-500.0,0.00037119,120]
[426778115,1782820928000,-500.0,0.00037119,120]
[426778112,1782820928000,-500.0,0.00037119,120]
[426778108,1782820928000,-500.0,0.00037119,120]
[426778110,1782820928000,-500.0,0.00037119,120]
[426778109,1782820928000,-500.0,0.00037119,120]
[426778107,1782820928000,-500.0,0.00037119,120]
[426778106,1782820928000,-500.0,0.00037119,120]
[426778118,1782820928000,-500.0,0.00037119,120]
[426778111,1782820928000,-500.0,0.00037119,120]
[426778119,1782820928000,-500.0,0.00037119,120]
[426778114,1782820928000,-500.0,0.00037119,120]
[426778121,1782820928000,-500.0,0.00037119,120]
[426778120,1782820928000,-500.0,0.00037119,120]
[426778131,1782820928000,-1129.0,0.00037119,30]
[426778129,1782820928000,-15569.14966995,0.00037119,30]
[426778130,1782820928000,-460.719173,0.00037119,120]
[426778128,1782820928000,-12500.0,0.00037119,30]
[426778127,1782820928000,-248.780515,0.00037119,120]
[426778132,1782820928000,-1129.0,0.00037119,30]
[426778126,1782820928000,-152.0,0.00037119,30]
[426778133,1782820928000,-1129.0,0.00037119,30]
[426778124,1782820928000,-500.0,0.00037119,120]
[426778122,1782820928000,-500.0,0.00037119,120]
[426778123,1782820928000,-500.0,0.00037119,120]
[426778125,1782820928000,-100000.000013,0.00037119,32]
[426778142,1782820929000,-2624.67,0.00037119,30]
[426778140,1782820929000,-2624.67,0.00037119,30]
[426778139,1782820929000,-2624.67,0.00037119,30]
[426778141,1782820929000,-2624.67,0.00037119,30]
[426778137,1782820929000,-2624.67,0.00037119,30]
[426778136,1782820929000,-2624.67,0.00037119,30]
[426778135,1782820929000,-2624.67,0.00037119,30]
[426778134,1782820929000,-1129.0,0.00037119,30]
[426778143,1782820929000,-2624.67,0.00037119,30]
[426778138,1782820929000,-2624.67,0.00037119,30]
[426778145,1782820929000,-2624.67,0.00037119,30]
[426778147,1782820929000,-2624.67,0.00037119,30]
[426778144,1782820929000,-2624.67,0.00037119,30]
[426778157,1782820929000,-2624.67,0.00037119,30]
[426778146,1782820929000,-2624.67,0.00037119,30]
[426778156,1782820929000,-2624.67,0.00037119,30]
[426778153,1782820929000,-2624.67,0.00037119,30]
[426778154,1782820929000,-2624.67,0.00037119,30]
[426778155,1782820929000,-2624.67,0.00037119,30]
[426778151,1782820929000,-2624.67,0.00037119,30]
[426778150,1782820929000,-2624.67,0.00037119,30]
[426778148,1782820929000,-2624.67,0.00037119,30]
[426778149,1782820929000,-2624.67,0.00037119,30]
[426778152,1782820929000,-2624.67,0.00037119,30]
[426778158,1782820930000,-2624.71701045,0.00037119,30]
[426778159,1782820930000,-109537.86890785,0.00037119,30]
[426778161,1782820930000,-1251.24099507,0.00037119,30]
[426778160,1782820930000,-1353088.44226147,0.00037119,30]
[426778162,1782820930000,-2261.07541796,0.00037119,30]
[426778163,1782820930000,-168808.27032778,0.00037119,30]
[426778165,1782820930000,-19421.73105374,0.00037119,30]
[426778167,1782820930000,-1290.32064302,0.00037119,30]
[426778166,1782820930000,-69267.41156899,0.00037119,30]
[426778168,1782820930000,-5503.87792001,0.00037119,30]
[426778169,1782820930000,-16245.52009412,0.00037119,30]
[426778170,1782820930000,-360092.52168679,0.00037119,30]
[426778171,1782820930000,-2088.81832449,0.00037119,30]
[426778172,1782820930000,-5485670.63936072,0.00037119,30]
[426778164,1782820930000,-1432.35660769,0.00037119,30]
[426778173,1782820947000,-152.0,0.00010829,2]
[426778175,1782820955000,-190.0,0.00024638,120]
[426778177,1782820955000,-180.9337086,0.000273,30]
[426778176,1782820955000,-190.0,0.0002587,120]
[426778174,1782820955000,-166.86983135,0.000219,30]
[426778187,1782820956000,-294.23,0.00027702,30]
[426778190,1782820956000,-268.99,0.00027885,30]
[426778188,1782820956000,-268.99,0.00027794,30]
[426778186,1782820956000,-268.99,0.00027702,30]
[426778185,1782820956000,-952.12,0.00027644,120]
[426778178,1782820956000,-952.12,0.00027397,120]
[426778183,1782820956000,-268.99,0.00027611,30]
[426778180,1782820956000,-1439.85,0.0002755,30]
[426778181,1782820956000,-1434.09,0.0002755,30]
[426778189,1782820956000,-294.23,0.00027794,30]
[426778179,1782820956000,-150.03648848,0.00027397,30]
[426778184,1782820956000,-294.23,0.00027611,30]
[426778191,1782820956000,-294.23,0.00027885,30]
[426778182,1782820956000,-1142.8,0.0002755,30]
[426778194,1782820956000,-1142.81,0.00027892,30]
[426778205,1782820956000,-1434.1,0.00028373,30]
[426778193,1782820956000,-1439.85,0.00027892,30]
[426778204,1782820956000,-1439.85,0.00028373,30]
[426778201,1782820956000,-268.99,0.00028068,30]
[426778203,1782820956000,-952.12,0.00028137,120]
[426778202,1782820956000,-294.23,0.00028068,30]
[426778206,1782820956000,-952.12,0.00028384,120]
[426778200,1782820956000,-216.62538722,0.00028,30]
[426778199,1782820956000,-160.0,0.00028,30]
[426778196,1782820956000,-1142.8,0.00027892,30]
[426778195,1782820956000,-1434.09,0.00027892,30]
[426778197,1782820956000,-268.99,0.00027977,30]
[426778192,1782820956000,-952.12,0.0002789,120]
[426778198,1782820956000,-294.23,0.00027977,30]
[426778216,1782820957000,-200.0,0.0002856,30]
[426778215,1782820957000,-865.0,0.0002856,30]
[426778213,1782820957000,-196.0,0.00028558,30]
[426778214,1782820957000,-175.0,0.00028558,30]
[426778207,1782820957000,-280.0,0.00028558,30]
[426778211,1782820957000,-594.0,0.00028558,30]
[426778210,1782820957000,-156.0,0.00028558,30]
[426778208,1782820957000,-158.0,0.00028558,30]
[426778209,1782820957000,-223.0,0.00028558,30]
[426778212,1782820957000,-674.0,0.00028558,30]
[426778217,1782820957000,-151.0,0.0002856,30]
[426778219,1782820957000,-952.12,0.0002863,120]
[426778220,1782820957000,-1434.11,0.00028855,30]
[426778221,1782820957000,-1439.9,0.00028855,30]
[426778222,1782820957000,-952.12,0.00028877,120]
[426778223,1782820957000,-92697.87434655,0.0002888,60]
[426778224,1782820957000,-10000.0,0.0002888,30]
[426778226,1782820957000,-10000.0,0.00029,120]
[426778227,1782820957000,-952.12,0.00029123,120]
[426778225,1782820957000,-152.33491513,0.00029,120]
[426778228,1782820957000,-952.12,0.0002937,120]
[426778230,1782820957000,-158.0,0.00029558,30]
[426778229,1782820957000,-280.0,0.00029558,30]
[426778218,1782820957000,-1095.0,0.0002856,30]
[426778239,1782820958000,-151.0,0.0002956,30]
[426778238,1782820958000,-200.0,0.0002956,30]
[426778237,1782820958000,-865.0,0.0002956,30]
[426778236,1782820958000,-175.0,0.00029558,30]
[426778232,1782820958000,-156.0,0.00029558,30]
[426778241,1782820958000,-1771.82,0.000296,30]
[426778235,1782820958000,-196.0,0.00029558,30]
[426778233,1782820958000,-594.0,0.00029558,30]
[426778231,1782820958000,-223.0,0.00029558,30]
[426778234,1782820958000,-674.0,0.00029558,30]
[426778240,1782820958000,-1095.0,0.0002956,30]
[426778249,1782820958000,-160.0,0.0003,120]
[426778244,1782820958000,-10000.0,0.0002999,30]
[426778254,1782820958000,-952.12,0.0003011,120]
[426778252,1782820958000,-216.62538722,0.0003,30]
[426778251,1782820958000,-1720.812754,0.0003,120]
[426778253,1782820958000,-302.0,0.000301,120]
[426778248,1782820958000,-10000.0,0.0003,120]
[426778242,1782820958000,-952.12,0.00029616,120]
[426778247,1782820958000,-639.0,0.0003,120]
[426778246,1782820958000,-172.76733894,0.0003,120]
[426778245,1782820958000,-462.51529504,0.0003,120]
[426778243,1782820958000,-952.12,0.00029863,120]
[426778250,1782820958000,-160.0,0.0003,30]
[426778256,1782820959000,1439.85,0.00027562,30]
[426778255,1782820959000,1434.1,0.00027562,30]
[426778258,1782820960000,1439.85,0.0002842,30]
[426778257,1782820960000,1434.1,0.0002842,30]
[426778259,1782820961000,182.0,0.0002856,30]
[426778261,1782820962000,182.0,0.0002956,30]
[426778260,1782820962000,-9000000.0,0.00037119,30]
[426778262,1782820965000,-9000000.0,0.00037119,30]
[426778263,1782820966000,372.47,0.00027737,30]
[426778265,1782820967000,-9000000.0,0.00037119,30]
[426778264,1782820967000,372.47,0.00028001,30]
[426778266,1782820968000,372.47,0.00028265,30]
[426778268,1782820969000,372.47,0.00028793,30]
[426778267,1782820969000,372.47,0.00028529,30]
[426778270,1782820970000,372.47,0.00029056,30]
[426778269,1782820970000,-9000000.0,0.00037119,30]
[426778272,1782820972000,-8772110.32607708,0.00037119,30]
[426778271,1782820972000,558.72,0.00025234,30]
[426778277,1782820973000,558.72,0.00026099,30]
[426778276,1782820973000,-219667.72374897,0.00037119,30]
[426778274,1782820973000,-4461.2081729,0.00037119,30]
[426778273,1782820973000,-2392.69539502,0.00037119,30]
[426778275,1782820973000,-1368.04660603,0.00037119,30]
[426778288,1782820975000,-2325.44800627,0.00037119,30]
[426778286,1782820975000,-5813.71613182,0.00037119,30]
[426778283,1782820975000,-10892.78306583,0.00037119,30]
[426778285,1782820975000,-5088.35465657,0.00037119,30]
[426778284,1782820975000,-1870.5159805,0.00037119,30]
[426778278,1782820975000,-1094012.96284578,0.00037119,30]
[426778281,1782820975000,-5972.52841701,0.00037119,30]
[426778280,1782820975000,-1994.81820894,0.00037119,30]
[426778279,1782820975000,-3101.45282296,0.00037119,30]
[426778287,1782820975000,-3534.29399292,0.00037119,30]
[426778282,1782820975000,-2035.23136061,0.00037119,30]
[426778289,1782820975000,-1269.44649121,0.00037119,30]
[426778300,1782820975000,-3520.32522398,0.00037119,30]
[426778291,1782820975000,-1825.11105871,0.00037119,30]
[426778290,1782820975000,-2966.24407781,0.00037119,30]
[426778302,1782820975000,-1499.999999,0.00037119,30]
[426778301,1782820975000,-6684.93970942,0.00037119,30]
[426778298,1782820975000,-1318.98722877,0.00037119,30]
[426778296,1782820975000,-137599.37920366,0.00037119,60]
[426778299,1782820975000,-2037.53386844,0.00037119,30]
[426778295,1782820975000,-1011497.69990018,0.00037119,30]
[426778293,1782820975000,-1159.64103262,0.00037119,30]
[426778294,1782820975000,-4029.67602586,0.00037119,30]
[426778292,1782820975000,-17226.61327731,0.00037119,30]
[426778297,1782820975000,-1134.96338195,0.00037119,30]
[426778310,1782820976000,-49830.16450023,0.00037119,30]
[426778314,1782820976000,-2117.75956966,0.00037119,30]
[426778313,1782820976000,-3399.25686033,0.00037119,30]
[426778315,1782820976000,-2036.74031593,0.00037119,30]
[426778312,1782820976000,-1985.68485496,0.00037119,30]
[426778308,1782820976000,-2259.87735489,0.00037119,30]
[426778303,1782820976000,-2098.56682698,0.00037119,30]
[426778307,1782820976000,-3006.54555052,0.00037119,30]
[426778306,1782820976000,-3051.98634419,0.00037119,30]
[426778305,1782820976000,-18563.02809879,0.00037119,30]
[426778304,1782820976000,-1435.15882328,0.00037119,30]
[426778318,1782820976000,-522.71948891,0.00037119,120]
[426778309,1782820976000,-3331.34149731,0.00037119,30]
[426778316,1782820976000,-3137.0,0.00037119,120]
[426778311,1782820976000,-2944.2335566,0.00037119,30]
[426778319,1782820976000,-255.27441309,0.00037119,120]
[426778317,1782820976000,-500.0,0.00037119,120]
[426778329,1782820976000,-500.0,0.00037119,120]
[426778330,1782820976000,-500.0,0.00037119,120]
[426778331,1782820976000,-500.0,0.00037119,120]
[426778328,1782820976000,-500.0,0.00037119,120]
[426778327,1782820976000,-500.0,0.00037119,120]
[426778326,1782820976000,-500.0,0.00037119,120]
[426778332,1782820976000,-500.0,0.00037119,120]
[426778323,1782820976000,-321.0,0.00037119,120]
[426778333,1782820976000,-500.0,0.00037119,120]
[426778324,1782820976000,-500.0,0.00037119,120]
[426778322,1782820976000,-215.0,0.00037119,120]
[426778320,1782820976000,-20471.18419481,0.00037119,120]
[426778321,1782820976000,-562.0,0.00037119,120]
[426778325,1782820976000,-500.0,0.00037119,120]
[426778346,1782820977000,-500.0,0.00037119,120]
[426778344,1782820977000,-350.42507023,0.00037119,120]
[426778342,1782820977000,-500.0,0.00037119,120]
[426778343,1782820977000,-500.0,0.00037119,120]
[426778341,1782820977000,-500.0,0.00037119,120]
[426778335,1782820977000,-500.0,0.00037119,120]
[426778340,1782820977000,-500.0,0.00037119,120]
[426778338,1782820977000,-500.0,0.00037119,120]
[426778336,1782820977000,-500.0,0.00037119,120]
[426778337,1782820977000,-500.0,0.00037119,120]
[426778347,1782820977000,-500.0,0.00037119,120]
[426778339,1782820977000,-500.0,0.00037119,120]
[426778345,1782820977000,-500.0,0.00037119,120]
[426778334,1782820977000,-500.0,0.00037119,120]
[426778348,1782820977000,-500.0,0.00037119,120]
[426778360,1782820977000,-500.0,0.00037119,120]
[426778361,1782820977000,-500.0,0.00037119,120]
[426778359,1782820977000,-500.0,0.00037119,120]
[426778357,1782820977000,-500.0,0.00037119,120]
[426778358,1782820977000,-500.0,0.00037119,120]
[426778355,1782820977000,-36300.0,0.00037119,120]
[426778349,1782820977000,-500.0,0.00037119,120]
[426778354,1782820977000,-50000.0,0.00037119,90]
[426778353,1782820977000,-50000.0,0.00037119,60]
[426778351,1782820977000,-500.0,0.00037119,120]
[426778352,1782820977000,-500.0,0.00037119,120]
[426778350,1782820977000,-500.0,0.00037119,120]
[426778356,1782820977000,-200.0,0.00037119,120]
[426778372,1782820978000,-652.71,0.00037119,120]
[426778373,1782820978000,-652.71,0.00037119,120]
[426778371,1782820978000,-652.71,0.00037119,120]
[426778369,1782820978000,-621.05123786,0.00037119,120]
[426778370,1782820978000,-2591.71110294,0.00037119,30]
[426778367,1782820978000,-500.0,0.00037119,120]
[426778366,1782820978000,-500.0,0.00037119,120]
[426778365,1782820978000,-500.0,0.00037119,120]
[426778363,1782820978000,-500.0,0.00037119,120]
[426778364,1782820978000,-350.52233519,0.00037119,120]
[426778374,1782820978000,-652.71,0.00037119,120]
[426778368,1782820978000,-500.0,0.00037119,120]
[426778362,1782820978000,-500.0,0.00037119,120]
[426778376,1782820978000,-652.71,0.00037119,120]
[426778377,1782820978000,-306.0,0.00037119,120]
[426778375,1782820978000,-652.71,0.00037119,120]
[426778389,1782820978000,-652.71,0.00037119,120]
[426778388,1782820978000,-652.71,0.00037119,120]
[426778386,1782820978000,-652.71,0.00037119,120]
[426778385,1782820978000,-652.71,0.00037119,120]
[426778383,1782820978000,-652.71,0.00037119,120]
[426778387,1782820978000,-652.71,0.00037119,120]
[426778382,1782820978000,-652.71,0.00037119,120]
[426778381,1782820978000,-652.71,0.00037119,120]
[426778380,1782820978000,-652.71,0.00037119,120]
[426778379,1782820978000,-652.71,0.00037119,120]
[426778378,1782820978000,-652.71,0.00037119,120]
[426778384,1782820978000,-652.71,0.00037119,120]
[426778399,1782820979000,-220.39197414,0.00037119,120]
[426778402,1782820979000,-193.11250707,0.00037119,120]
[426778400,1782820979000,-217.87169585,0.00037119,120]
[426778397,1782820979000,-652.7798809,0.00037119,120]
[426778398,1782820979000,-203.35222309,0.00037119,120]
[426778396,1782820979000,-652.71,0.00037119,120]
[426778401,1782820979000,-215.09912458,0.00037119,120]
[426778394,1782820979000,-652.71,0.00037119,120]
[426778392,1782820979000,-652.71,0.00037119,120]
[426778393,1782820979000,-290.77,0.00037119,120]
[426778391,1782820979000,-652.71,0.00037119,120]
[426778390,1782820979000,-213.23767163,0.00037119,120]
[426778395,1782820979000,-652.71,0.00037119,120]
[426778403,1782820979000,-208.0,0.00037119,120]
[426778415,1782820979000,-168.99291951,0.00037119,120]
[426778405,1782820979000,-500.0,0.00037119,120]
[426778404,1782820979000,-179.50576723,0.00037119,120]
[426778417,1782820979000,-176.97517243,0.00037119,90]
[426778416,1782820979000,-215.56875227,0.00037119,120]
[426778414,1782820979000,-834.04789394,0.00037119,120]
[426778413,1782820979000,-175.9922352,0.00037119,120]
[426778412,1782820979000,-171.25806971,0.00037119,120]
[426778418,1782820979000,-205.93866024,0.00037119,120]
[426778409,1782820979000,-155.85996668,0.00037119,120]
[426778410,1782820979000,-160.86654917,0.00037119,120]
[426778408,1782820979000,-188.60442054,0.00037119,120]
[426778407,1782820979000,-151.97364258,0.00037119,120]
[426778406,1782820979000,-232.0,0.00037119,120]
[426778411,1782820979000,-189.97731607,0.00037119,120]
[426778428,1782820980000,-160.22441184,0.00037119,120]
[426778426,1782820980000,-178.22461391,0.00037119,120]
[426778427,1782820980000,-210.4391,0.00037119,120]
[426778425,1782820980000,-500.0,0.00037119,120]
[426778424,1782820980000,-500.0,0.00037119,120]
[426778422,1782820980000,-334.06788965,0.00037119,120]
[426778421,1782820980000,-163.08932026,0.00037119,120]
[426778420,1782820980000,-330.0,0.00037119,120]
[426778419,1782820980000,-251.40469273,0.00037119,120]
[426778429,1782820980000,-178.57116638,0.00037119,120]
[426778423,1782820980000,-161.25460195,0.00037119,120]
[426778430,1782820980000,-208.48915034,0.00037119,120]
[426778431,1782820980000,-170.86958805,0.00037119,120]
[426778432,1782820980000,-188.1122826,0.00037119,120]
[426778442,1782820980000,-188.39940345,0.00037119,120]
[426778444,1782820980000,-160.83163079,0.00037119,120]
[426778441,1782820980000,-361.54384016,0.00037119,120]
[426778439,1782820980000,-198.35910071,0.00037119,120]
[426778440,1782820980000,-291.2109625,0.00037119,120]
[426778443,1782820980000,-162.302638,0.00037119,120]
[426778438,1782820980000,-173.26638032,0.00037119,120]
[426778436,1782820980000,-186.28353132,0.00037119,120]
[426778435,1782820980000,-261.02342542,0.00037119,120]
[426778434,1782820980000,-553.22957171,0.00037119,120]
[426778433,1782820980000,-500.0,0.00037119,120]
[426778437,1782820980000,-200.95318607,0.00037119,120]
[426778455,1782820981000,-203.0,0.00037119,120]
[426778456,1782820981000,-160.51148166,0.00037119,120]
[426778454,1782820981000,-182.91715076,0.00037119,120]
[426778452,1782820981000,-500.0,0.00037119,120]
[426778453,1782820981000,-490.53675922,0.00037119,120]
[426778450,1782820981000,-230.92166246,0.00037119,120]
[426778449,1782820981000,-216.86239344,0.00037119,120]
[426778448,1782820981000,-640.21375874,0.00037119,120]
[426778446,1782820981000,-183.89444146,0.00037119,120]
[426778447,1782820981000,-249.69110145,0.00037119,120]
[426778457,1782820981000,-507.41239095,0.00037119,120]
[426778451,1782820981000,-500.0,0.00037119,120]
[426778459,1782820981000,-159.75108488,0.00037119,120]
[426778445,1782820981000,-268.06766277,0.00037119,120]
[426778460,1782820981000,-564.2742,0.00037119,120]
[426778458,1782820981000,-182.82264951,0.00037119,120]
[426778472,1782820981000,-290.33943437,0.00037119,120]
[426778470,1782820981000,-174.23558451,0.00037119,120]
[426778471,1782820981000,-200.09607135,0.00037119,30]
[426778469,1782820981000,-279.55539568,0.00037119,120]
[426778468,1782820981000,-314.31488221,0.00037119,120]
[426778473,1782820981000,-166.19592497,0.00037119,120]
[426778466,1782820981000,-169.75020683,0.00037119,120]
[426778464,1782820981000,-165.25849822,0.00037119,120]
[426778465,1782820981000,-333.79428564,0.00037119,120]
[426778463,1782820981000,-185.73464376,0.00037119,120]
[426778461,1782820981000,-216.96011458,0.00037119,120]
[426778462,1782820981000,-166.05927847,0.00037119,120]
[426778467,1782820981000,-232.33466032,0.00037119,120]
[426778483,1782820982000,-217.61755823,0.00037119,120]
[426778481,1782820982000,-157.32854125,0.00037119,120]
[426778482,1782820982000,-248.03842253,0.00037119,120]
[426778480,1782820982000,-184.38019541,0.00037119,120]
[426778479,1782820982000,-471.0,0.00037119,120]
[426778477,1782820982000,-162.52052389,0.00037119,120]
[426778476,1782820982000,-197.25857817,0.00037119,120]
[426778475,1782820982000,-342.51089142,0.00037119,120]
[426778474,1782820982000,-151.34626562,0.00037119,120]
[426778484,1782820982000,-282.22959588,0.00037119,120]
[426778478,1782820982000,-308.68938963,0.00037119,120]
[426778485,1782820982000,-252.31889768,0.00037119,120]
[426778487,1782820982000,-200.79147254,0.00037119,120]
[426778486,1782820982000,-162.17108941,0.00037119,120]
[426778497,1782820982000,-500.0,0.00037119,120]
[426778496,1782820982000,-157.6312352,0.00037119,120]
[426778494,1782820982000,-181.1288089,0.00037119,120]
[426778495,1782820982000,-189.73423812,0.00037119,120]
[426778493,1782820982000,-217.61098951,0.00037119,120]
[426778498,1782820982000,-185.89701323,0.00037119,120]
[426778492,1782820982000,-322.27620392,0.00037119,120]
[426778490,1782820982000,-175.81931479,0.00037119,120]
[426778489,1782820982000,-191.57360185,0.00037119,120]
[426778488,1782820982000,-324.88179246,0.00037119,120]
[426778491,1782820982000,-173.1685598,0.00037119,120]
[426778509,1782820983000,-207.11801074,0.00037119,120]
[426778507,1782820983000,-192.90414381,0.00037119,120]
[426778508,1782820983000,-181.09911342,0.00037119,120]
[426778506,1782820983000,-162.32015817,0.00037119,120]
[426778505,1782820983000,-275.08999642,0.00037119,120]
[426778503,1782820983000,-166.72491508,0.00037119,120]
[426778502,1782820983000,-195.27576352,0.00037119,90]
[426778501,1782820983000,-251.39419341,0.00037119,120]
[426778499,1782820983000,-219.06425647,0.00037119,120]
[426778511,1782820983000,-201.92512177,0.00037119,120]
[426778500,1782820983000,-190.95863789,0.00037119,120]
[426778504,1782820983000,-511.32748576,0.00037119,120]
[426778510,1782820983000,-215.65356583,0.00037119,120]
[426778525,1782820983000,-440.999999,0.00037119,120]
[426778512,1782820983000,-151.13025963,0.00037119,120]
[426778513,1782820983000,-187.16743965,0.00037119,120]
[426778526,1782820983000,-284.00498067,0.00037119,120]
[426778523,1782820983000,-202.35846805,0.00037119,120]
[426778524,1782820983000,-317.5599097,0.00037119,120]
[426778521,1782820983000,-630.18202472,0.00037119,30]
[426778520,1782820983000,-199.09984118,0.00037119,120]
[426778522,1782820983000,-185.91730467,0.00037119,120]
[426778518,1782820983000,-500.0,0.00037119,120]
[426778517,1782820983000,-198.66423653,0.00037119,120]
[426778516,1782820983000,-208.58711736,0.00037119,120]
[426778515,1782820983000,-202.1485014,0.00037119,120]
[426778514,1782820983000,-179.82318149,0.00037119,120]
[426778519,1782820983000,-507.96274362,0.00037119,120]
[426778534,1782820984000,-500.0,0.00037119,120]
[426778537,1782820984000,-151.93499484,0.00037119,120]
[426778535,1782820984000,-300.35001638,0.00037119,120]
[426778536,1782820984000,-171.74124343,0.00037119,120]
[426778532,1782820984000,-546.52736891,0.00037119,120]
[426778527,1782820984000,-1427.3069,0.00037119,120]
[426778533,1782820984000,-161.4961539,0.00037119,120]
[426778531,1782820984000,-169.92861805,0.00037119,120]
[426778529,1782820984000,-188.8454506,0.00037119,120]
[426778530,1782820984000,-394.71897082,0.00037119,120]
[426778528,1782820984000,-399.11072576,0.00037119,120]
[426778538,1782820984000,-185.81236847,0.00037119,120]
[426778539,1782820984000,-155.09328193,0.00037119,120]
[426778547,1782820984000,-205.77600319,0.00037119,120]
[426778540,1782820984000,-482.3160602,0.00037119,120]
[426778553,1782820984000,-202.39288171,0.00037119,120]
[426778551,1782820984000,-393.430801,0.00037119,120]
[426778552,1782820984000,-500.0,0.00037119,120]
[426778550,1782820984000,-196.64517282,0.00037119,120]
[426778548,1782820984000,-500.0,0.00037119,120]
[426778541,1782820984000,-180.18019791,0.00037119,120]
[426778545,1782820984000,-295.16621965,0.00037119,120]
[426778546,1782820984000,-153.55715343,0.00037119,120]
[426778544,1782820984000,-290.07282701,0.00037119,120]
[426778543,1782820984000,-166.47448792,0.00037119,120]
[426778542,1782820984000,-169.8296668,0.00037119,120]
[426778549,1782820984000,-517.52650685,0.00037119,120]
[426778563,1782820985000,-196.6019625,0.00037119,120]
[426778562,1782820985000,-159.65606026,0.00037119,120]
[426778561,1782820985000,-449.57479959,0.00037119,120]
[426778560,1782820985000,-281.77854551,0.00037119,120]
[426778559,1782820985000,-151.31431923,0.00037119,120]
[426778556,1782820985000,-168.83362297,0.00037119,120]
[426778558,1782820985000,-158.8935936,0.00037119,120]
[426778555,1782820985000,-565.42801911,0.00037119,120]
[426778554,1782820985000,-240.75485485,0.00037119,120]
[426778564,1782820985000,-509.96731394,0.00037119,120]
[426778557,1782820985000,-155.75364737,0.00037119,120]
[426778565,1782820985000,-260.77112131,0.00037119,120]
[426778567,1782820985000,-239.83145659,0.00037119,120]
[426778580,1782820985000,-160.5541232,0.00037119,120]
[426778566,1782820985000,-500.0,0.00037119,120]